[Event "Teplice Open 2022"]
[Site "Teplice"]
[Date "2022.06.24"]
[Round "7.15"]
[White "Yankelevich, Lev"]
[Black "Wagh Suyog"]
[Result "1-0"]
[ECO "E08"]
[WhiteElo "2473"]
[BlackElo "2352"]
[Annotator "TA"]
[PlyCount "75"]
[EventDate "2022.06.18"]
[EventType "swiss"]
[EventCountry "CZE"]
[SourceTitle "playchess.com"]
[Source "ChessBase"]
[SourceQuality "1"]
[TimeControl "40/5400+30:1800+30"]

{[%evp 19,75,11,0,0,7,0,0,0,0,0,9,13,0,-9,9,10,68,66,67,67,67,67,63,62,64,53,68,63,79,79,84,84,195,188,475,475,475,475,475,475,468,468,468,468,468,466,457,404,669,659,851,823,854,841,897,897,760,739]} 1. d4 {[%emt 0:00:02]} Nf6 {[%emt 0:03:10]} 2. c4 {[%emt 0:00:06]} e6 {[%emt 0:00:05]} 3. Nf3 {[%emt 0:00:17]} d5 {[%emt 0:01:53]} 4. g3 {[%emt 0:00:05]} Bb4+ {[%emt 0:00:24]} 5. Bd2 {[%emt 0:00:18]} Be7 {[%emt 0:00:30]} 6. Bg2 {[%emt 0:00:09]} O-O {[%emt 0:00:06]} 7. O-O {[%emt 0:00:10]} Nbd7 {[%emt 0:00:11]} 8. Qc2 {[%emt 0:01:49]} c6 {[%emt 0:00:16]} 9. Bf4 {[%emt 0:00:23]} b6 {[%emt 0:13:18]} 10. cxd5 {[%emt 0:00:33] 10.Nbd2 is the modern continuation.} cxd5 {[%emt 0:00:05]} 11. Rc1 {[%emt 0:00:04] E08: Closed Catalan: Main Line: 7 Qc2.} Bb7 {[%emt 0:00:21]} 12. Qb3 {[%emt 0:00:05]} Rc8 {[%emt 0:01:08]} 13. Rxc8 {[%emt 0:00:06] The position is equal.} Qxc8 {[%emt 0:00:06]} 14. Nc3 {[%emt 0:00:02]} a6 {[%emt 0:08:44]} 15. Rc1 {[%emt 0:00:11]} Qa8 {[%emt 0:00:24]} 16. Ne5 {[%emt 0:19:36]} Rc8 {[%emt 0:12:21]} 17. Bg5 {[%emt 0:00:33] [#]} Bd8 $146 {[%emt 0:46:43]} ({Black should play} 17... Bd6 $11) ({Predecessor:} 17... Nxe5 18. dxe5 d4 19. exf6 Bxf6 20. Bxf6 gxf6 21. Qxb6 Bxg2 22. Qxd4 Bh3 23. f3 Qb8 {0-1 (60) Postny,E (2621)-Bosiocic,M (2600) Biograd 2018}) 18. Nxd7 $1 $14 {[%emt 0:15:23] 0x0.00166dcb6cdddp-1022s more active pieces.} Nxd7 {[%emt 0:00:01]} 19. Bxd8 {[%emt 0:00:06]} Rxd8 {[%emt 0:00:02]} 20. Na4 {[%emt 0:00:04]} b5 {[%emt 0:08:54]} 21. Nc5 {[%emt 0:00:55]} Bc6 {[%emt 0:00:46]} 22. Qe3 {[%emt 0:00:55][%cal Oc5e6] Threatens to win with Nxe6!} Nxc5 {[%emt 0:00:39]} 23. Rxc5 {[%emt 0:00:10]} ({Reject} 23. dxc5 b4 $11) 23... Qb7 {[%emt 0:00:27] Black is now going downhill.} 24. b4 {[%emt 0:00:13]} h6 {[%emt 0:00:16]} 25. Qc3 {[%emt 0:00:44]} Rc8 {[%emt 0:00:15] [#]} (25... Bd7 $16) 26. e4 $1 $18 {[%emt 0:00:24] exd5 is the strong threat.} dxe4 {[%emt 0:01:42] [#]} (26... Bd7 {was called for.}) 27. Bxe4 $1 {[%emt 0:00:05][%mdl 512]} Bxe4 {[%emt 0:00:03]} 28. Rxc8+ {[%emt 0:00:10][%mdl 4096] Endgame KQR-KQB} Kh7 {[%emt 0:00:01]} 29. Qc7 {[%emt 0:04:17]} Qd5 {[%emt 0:00:09]} 30. Qe5 {[%emt 0:00:04]} ({Not} 30. Qxf7 Bh1 31. f3 Bxf3 $16) 30... Kg6 {[%emt 0:01:02]} 31. Qxd5 {[%emt 0:02:52]} Bxd5 {[%emt 0:00:02] KR-KB} 32. a3 {[%emt 0:00:05]} Kf5 {[%emt 0:00:03]} 33. Rc7 {[%emt 0:00:02]} Ke4 {[%emt 0:00:41]} (33... e5 $142 34. dxe5 Kxe5 35. f4+ Kf5) 34. Rxf7 {[%emt 0:00:05] White is clearly winning.} e5 {[%emt 0:00:01]} 35. Re7 {[%emt 0:00:39]} Kxd4 {[%emt 0:00:37]} 36. Rxg7 {[%emt 0:00:06]} Kc3 {[%emt 0:01:37]} 37. Rg6 {[%emt 0:00:25][%csl LRa6,LRh6]} Kb2 {[%emt 0:00:15]} 38. Rxa6 {[%emt 0:00:06] Weighted Error Value: White=0.01 (flawless) /Black=0.44} 1-0

[Event "Teplice Open 2022"]
[Site "Teplice"]
[Date "2022.06.24"]
[Round "7.16"]
[White "Dixit, Nikhil"]
[Black "Blomqvist, Erik"]
[Result "0-1"]
[ECO "B74"]
[WhiteElo "2331"]
[BlackElo "2523"]
[Annotator "TA"]
[PlyCount "102"]
[EventDate "2022.06.18"]
[EventType "swiss"]
[EventCountry "CZE"]
[SourceTitle "playchess.com"]
[Source "ChessBase"]
[SourceQuality "1"]
[TimeControl "40/5400+30:1800+30"]

{[%evp 19,102,2,22,26,42,27,27,36,39,-25,0,-29,-12,-41,-27,-51,-14,-20,-31,-13,-18,-14,-23,-21,-9,-14,-11,-14,0,0,0,-55,-70,-75,-72,-82,-70,-172,-172,-182,-182,-182,-171,-175,-175,-175,-174,-229,-223,-215,-211,-251,-251,-243,-243,-305,-224,-242,-222,-381,-381,-381,-381,-1401,-1163,-1419,-1390,-1385,-1245,-1373,-1187,-1156,-1104,-4990,-1742,-5057,-4889,-1313,-1012,-868,-866,-814,-755,-1214,-1198]} 1. e4 {[%emt 0:05:14]} c5 {[%emt 0:00:07]} 2. Nf3 {[%emt 0:00:04]} d6 {[%emt 0:00:23]} 3. d4 {[%emt 0:01:02]} cxd4 {[%emt 0:00:13]} 4. Nxd4 {[%emt 0:00:04]} Nf6 {[%emt 0:00:13]} 5. Nc3 {[%emt 0:00:18]} Nc6 {[%emt 0:00:14]} 6. Be2 {[%emt 0:01:57]} g6 {[%emt 0:01:24]} 7. O-O {[%emt 0:03:38]} Bg7 {[%emt 0:00:13]} 8. Nb3 {[%emt 0:03:39]} O-O {[%emt 0:00:42]} 9. Be3 {[%emt 0:04:59]} Be6 {[%emt 0:05:34]} 10. f4 {[%emt 0:03:52]} b5 {[%emt 0:01:42] 10...Rc8 is the modern continuation.} 11. Bf3 {[%emt 0:07:57] B74: Sicilian Dragon: Classical System with 9 Nb3.} Rc8 {[%emt 0:02:54]} 12. Nd5 {[%emt 0:02:38]} Nd7 {[%emt 0:01:54]} 13. c3 {[%emt 0:01:31] White has an edge.} a5 {[%emt 0:00:48] [#]} 14. Nd4 $146 {[%emt 0:11:31]} ({White should try} 14. a4 $14 b4 15. Be2) ({Predecessor:} 14. a3 a4 15. Nd4 Bxd5 16. exd5 Nxd4 17. Bxd4 Bxd4+ 18. Qxd4 Qb6 19. Rad1 Rc4 20. Qxb6 Nxb6 {1-0 (55) Mortensen,E (2450)-Nielsen,P (2365) Tjele 1991}) 14... Bxd5 {[%emt 0:02:22]} (14... Nxd4 {seems wilder.} 15. cxd4 Bxd5 16. exd5 a4) 15. exd5 {[%emt 0:00:08]} Nxd4 {[%emt 0:00:12]} (15... Bxd4 $5 16. Bxd4 Nxd4 17. Qxd4 Rc4 $11) 16. Bxd4 {[%emt 0:00:49]} Bxd4+ {[%emt 0:01:09]} 17. Qxd4 {[%emt 0:02:22]} Qb6 {[%emt 0:08:23]} (17... Rc4 $5 {[%cal Rc4d4]} 18. Qe3 b4 $11) 18. Rfe1 {[%emt 0:05:00]} Rfe8 {[%emt 0:05:31]} 19. Rad1 {[%emt 0:06:43]} Rc4 {[%emt 0:11:06]} 20. Qxb6 {[%emt 0:02:45]} Nxb6 {[%emt 0:00:06]} 21. Be2 {[%emt 0:11:55]} Rc5 {[%emt 0:00:45]} 22. b4 {[%emt 0:00:19]} Rxc3 {[%emt 0:05:40]} 23. Bxb5 {[%emt 0:01:08]} Ra8 {[%emt 0:01:40]} 24. Bc6 {[%emt 0:09:02]} Ra7 {[%emt 0:00:10]} 25. bxa5 {[%emt 0:01:06]} (25. b5 $11) 25... Rxa5 $15 {[%emt 0:01:00]} 26. a4 {[%emt 0:03:11] Black converts the advantage convincingly.} Kf8 {[%emt 0:02:14]} 27. Re4 {[%emt 0:06:22]} Ra3 {[%emt 0:13:14][%cal Rb6a4]} 28. Rdd4 {[%emt 0:01:37]} ({White should play} 28. Rb1 $15 Nxa4 29. Rb8+ Kg7 30. Rxe7 Ra1+ 31. Kf2) 28... f5 $1 $19 {[%emt 0:06:40]} 29. Re1 {[%emt 0:00:19]} Nxa4 {[%emt 0:00:15]} 30. Rb4 {[%emt 0:00:41] Black must now prevent Rb8+.} Nc5 {[%emt 0:00:52]} 31. Rb8+ {[%emt 0:00:35]} Kf7 {[%emt 0:07:43]} 32. Rh8 {[%emt 0:00:16]} Nd3 $1 {[%emt 0:03:20][%csl LRe1,LRf4]} ({And not} 32... Kg7 33. Re8 $15) 33. Rf1 {[%emt 0:02:28]} (33. Rxh7+ $142 Kg8 34. Rhxe7 Nxe1 35. Rxe1) 33... Kg7 {[%emt 0:01:46]} 34. Re8 {[%emt 0:00:09] [#]} Ra7 {[%emt 0:00:11]} 35. h3 {[%emt 0:01:09]} Rb3 {[%emt 0:01:28]} 36. Rf3 {[%emt 0:00:45]} h5 {[%emt 0:03:45][%cal Bh7h5,Bh5h4][%mdl 32] Threatens to win with ...Ra1+.} 37. Kh2 {[%emt 0:00:44]} Nc5 {[%emt 0:01:21] Hoping for ...Rxf3.} 38. Rxb3 {[%emt 0:00:31]} Nxb3 {[%emt 0:00:05]} 39. Ra8 $2 {[%emt 0:00:38]} (39. g4) 39... Rxa8 {[%emt 0:05:58]} 40. Bxa8 {[%emt 0:00:04][%mdl 4096] Endgame [#] KB-KN} h4 {[%emt 0:00:10]} 41. g3 $2 {[%emt 0:30:53]} (41. g4 g5 42. fxg5 fxg4 43. hxg4) 41... Nd4 {[%emt 0:30:24] Black is clearly winning.} 42. Kg2 {[%emt 0:00:39]} Ne2 {[%emt 0:00:16]} 43. gxh4 {[%emt 0:00:00]} Nxf4+ {[%emt 0:00:00]} 44. Kf3 {[%emt 0:00:00]} Nh5 {[%emt 0:00:00]} 45. Bc6 {[%emt 0:00:00]} Nf6 {[%emt 0:00:00] ...Kh6 is the strong threat.} 46. Kf4 {[%emt 0:00:00]} Kh6 {[%emt 0:00:00] And now ...Kh5 would win.} 47. Kf3 {[%emt 0:00:00]} Kh5 {[%emt 0:00:00]} 48. Kg3 {[%emt 0:00:00]} Ne4+ {[%emt 0:00:00]} 49. Kf4 {[%emt 0:00:00]} Kxh4 {[%emt 0:00:00]} 50. Be8 {[%emt 0:00:00]} Kh5 $1 {[%emt 0:00:00]} 51. Bf7 {[%emt 0:00:00]} Ng5 {[%emt 0:00:00] Weighted Error Value: White=0.74/Black=0.20 (precise)} 0-1

[Event "Teplice Open 2022"]
[Site "Teplice"]
[Date "2022.06.24"]
[Round "7.17"]
[White "Svanda, Ondrej"]
[Black "Budisavljevic, Luka"]
[Result "1/2-1/2"]
[ECO "C07"]
[WhiteElo "2361"]
[BlackElo "2507"]
[Annotator "TA"]
[PlyCount "60"]
[EventDate "2022.06.18"]
[EventType "swiss"]
[EventCountry "CZE"]
[SourceTitle "playchess.com"]
[Source "ChessBase"]
[SourceQuality "1"]
[TimeControl "40/5400+30:1800+30"]

{[%evp 15,60,10,15,19,18,11,17,19,26,23,13,16,13,24,17,-17,72,87,85,58,68,42,67,15,15,14,20,15,20,14,48,32,68,72,74,70,78,35,36,49,40,42,46,19,24,22,23]} 1. e4 {[%emt 0:00:03]} e6 {[%emt 0:00:28]} 2. d4 {[%emt 0:00:13]} d5 {[%emt 0:00:06]} 3. Nd2 {[%emt 0:00:04]} c5 {[%emt 0:00:30]} 4. Ngf3 {[%emt 0:00:05]} cxd4 {[%emt 0:00:13]} 5. Nxd4 {[%emt 0:00:08]} Nc6 {[%emt 0:00:05]} 6. Bb5 {[%emt 0:00:08]} Bd7 {[%emt 0:00:06]} 7. Nxc6 {[%emt 0:00:06]} bxc6 {[%emt 0:00:35]} 8. Bd3 {[%emt 0:00:05]} Qc7 {[%emt 0:00:08]} 9. Qe2 {[%emt 0:00:31] C07: French Tarrasch: 3...c5, 4 Ngf3 and 4 exd5 Qxd5.} Ne7 {[%emt 0:00:09]} 10. O-O {[%emt 0:00:45]} Ng6 {[%emt 0:00:13]} 11. Nf3 {[%emt 0:00:06]} Be7 {[%emt 0:00:33]} 12. c4 {[%emt 0:00:52]} dxe4 {[%emt 0:00:36]} 13. Bxe4 {[%emt 0:06:54]} f5 {[%emt 0:01:26]} 14. Bc2 {[%emt 0:03:02]} O-O {[%emt 0:00:09]} 15. Ng5 {[%emt 0:26:40]} Bxg5 {[%emt 0:01:52]} (15... Rf6 $11) 16. Bxg5 $16 {[%emt 0:01:02] [#]} e5 $146 {[%emt 0:00:40]} ({Predecessor:} 16... h6 17. Bd2 c5 18. Rad1 Rae8 19. Qh5 Kh7 20. Be3 Bc6 21. f4 Bb7 22. Rd2 Rd8 {0-1 (58) Dwilewicz,K (2092)-Socko,M (2421) Poronin 2021}) 17. Rad1 {[%emt 0:07:07]} Rae8 {[%emt 0:07:13]} 18. h4 {[%emt 0:03:53] White is more active.} Rf7 {[%emt 0:05:33]} 19. h5 {[%emt 0:00:58]} ({Better is} 19. c5 $1 $14) 19... Nf8 $1 $11 {[%emt 0:00:06][%cal Bg6f8,Bf8e6,Be6f4][%mdl 32]} 20. Bd2 {[%emt 0:15:13]} Ne6 {[%emt 0:01:15]} 21. Bc3 {[%emt 0:00:01] Against Nd4. A strong pair of Bishops.} Nf4 {[%emt 0:10:11]} 22. Qd2 {[%emt 0:00:00]} c5 {[%emt 0:03:12]} 23. Rfe1 $1 {[%emt 0:03:57]} Nxh5 {[%emt 0:08:46]} 24. Qd6 {[%emt 0:06:55]} Qxd6 {[%emt 0:02:14]} 25. Rxd6 {[%emt 0:00:01]} e4 {[%emt 0:00:00]} 26. Rd5 {[%emt 0:03:35]} (26. Red1 $5 {[%cal Rd6d7]} Bc8 27. Ba4 $14) 26... Rc8 $1 {[%emt 0:00:45]} 27. Bxe4 {[%emt 0:00:49]} fxe4 {[%emt 0:07:47]} 28. Rxh5 {[%emt 0:00:01]} Bf5 {[%emt 0:00:08]} 29. Rg5 {[%emt 0:00:05][%cal Oc3g7] Strongly threatening Bxg7!} h6 {[%emt 0:02:23]} 30. Rg3 {[%emt 0:00:11]} Rd8 {[%emt 0:00:34] Inhibits Rd1.  Weighted Error Value: White=0.10 (very precise) /Black=0.13 (very precise)} 1/2-1/2

[Event "Teplice Open 2022"]
[Site "Teplice"]
[Date "2022.06.24"]
[Round "7.18"]
[White "Santiago, Yago De Moura"]
[Black "Richter, Nils"]
[Result "0-1"]
[ECO "E52"]
[WhiteElo "2498"]
[BlackElo "2359"]
[Annotator "TA"]
[PlyCount "64"]
[EventDate "2022.06.18"]
[EventType "swiss"]
[EventCountry "CZE"]
[SourceTitle "playchess.com"]
[Source "ChessBase"]
[SourceQuality "1"]
[TimeControl "40/5400+30:1800+30"]

{[%evp 15,64,0,9,0,0,0,33,52,98,83,89,-2,40,59,98,109,91,28,89,97,96,89,96,-277,-268,-397,-410,-392,-394,-484,-461,-467,-482,-469,-487,-483,-474,-476,-464,-469,-443,-558,-545,-915,-820,-902,-892,-871,-856,-1172,-1053]} 1. d4 {[%emt 0:00:09]} Nf6 {[%emt 0:00:09]} 2. c4 {[%emt 0:00:26]} e6 {[%emt 0:00:07]} 3. Nc3 {[%emt 0:00:31]} Bb4 {[%emt 0:00:11]} 4. e3 {[%emt 0:00:24]} O-O {[%emt 0:00:23]} 5. Bd2 {[%emt 0:01:35]} d5 {[%emt 0:00:40]} 6. Nf3 {[%emt 0:00:20]} b6 {[%emt 0:01:16]} 7. cxd5 {[%emt 0:00:52]} exd5 {[%emt 0:00:09]} 8. Bd3 {[%emt 0:00:36]} Bb7 {[%emt 0:01:35]} 9. Qc2 {[%emt 0:01:12] E52: Nimzo-Indian: Rubinstein: 4...0-0 5 Nf3 d5 6 Bd3 b6.} Be7 {[%emt 0:04:23]} 10. g4 {[%emt 0:04:37]} g6 {[%emt 0:15:07] [#]} 11. h4 $146 {[%emt 0:04:35][%cal Bh2h4,Bh4h5][%mdl 32] White is slightly better.} ({Predecessor:} 11. Rg1 c5 12. h4 Nc6 13. a3 c4 14. Be2 Rb8 15. h5 b5 16. Nxb5 {½-½ (24) Von Scheve,T-Blackburne,J Dresden 1892}) 11... c5 {[%emt 0:03:05]} (11... Nxg4 $14 12. h5 Kg7) 12. h5 $1 $16 {[%emt 0:13:40][%cal Rh5g6]} (12. g5 $6 Ng4 $11) 12... c4 {[%emt 0:01:33] [#]} (12... Nxg4 $2 13. hxg6 h5 14. Bf5 (14. g7 Kxg7 15. O-O-O Rh8 $16) 14... fxg6 15. Bc8 $1 $18 {[%mdl 512]}) 13. Be2 {[%emt 0:01:59]} (13. Bxg6 $1 $16 {[%cal Og4g5] Black must now prevent g5!} fxg6 (13... Nc6 14. Bf5) 14. hxg6) 13... Nc6 {[%emt 0:05:50]} 14. a3 {[%emt 0:01:00]} Nxg4 {[%emt 0:11:58]} 15. hxg6 {[%emt 0:04:52]} hxg6 {[%emt 0:00:07]} 16. e4 {[%emt 0:20:48]} (16. Rg1 $16 Bc8 17. e4) 16... dxe4 {[%emt 0:10:31]} (16... Na5 $1 $11 {keeps the balance.} 17. exd5 Nb3) 17. Qxe4 {[%emt 0:02:25]} Qd7 {[%emt 0:03:22]} (17... Nxd4 $2 18. Qxg4 (18. Qxd4 Qxd4 19. Nxd4 Bxh1 $11) 18... Bf6 19. Qh3 Nxf3+ 20. Bxf3 Re8+ {[#]} 21. Ne4 $1 $18 {[%mdl 512]}) 18. d5 {[%emt 0:02:28]} (18. Bxc4 Nce5 19. Bd5 (19. Nxe5 Bxe4 20. Nxd7 Bxh1 $11) 19... Bxd5 20. Nxd5 Nd3+ 21. Kf1 (21. Qxd3 Qxd5 22. Rg1 f5 $15) 21... Bd8 22. Qxd3 Qxd5 $14) 18... Bc5 {[%emt 0:05:25] Threatens to win with ...Rfe8.} 19. Be3 $2 {[%emt 0:14:38][%mdl 8192] This move loses the game for White.} (19. dxc6 Bxc6 20. O-O-O (20. Qxc4 Bxf2+ 21. Kf1 Rfe8 $11) 20... Bxe4 $14) (19. Qxc4 $6 Bxf2+ 20. Kf1 Be3 21. dxc6 Bxc6 $11) (19. Qf4 $16 {keeps the pressure on.} Rae8 20. O-O-O (20. dxc6 Bxf2+ 21. Kf1 Bxc6 $11)) 19... Rfe8 $19 {[%emt 0:06:26]} 20. dxc6 {[%emt 0:00:15]} (20. Qxc4 $142 Bxe3 21. fxe3 Nxe3 22. Qa4 (22. dxc6 $2 Bxc6 23. Qd3 Qxd3 $19)) 20... Bxc6 {[%emt 0:00:14]} 21. Qf4 {[%emt 0:00:32]} Rxe3 {[%emt 0:01:39] Dancing on a razor blade.} ({Less strong is} 21... Bxe3 22. fxe3 Rxe3 23. Rd1 $16) (21... Nxe3 {is a self mate.} 22. Qf6) 22. fxe3 {[%emt 0:12:06]} Bxe3 {[%emt 0:00:02] This bishop pair is nice. Black is clearly winning.} 23. Qg3 {[%emt 0:00:39] aiming for Rf1.} Bf2+ {[%emt 0:01:59]} 24. Qxf2 {[%emt 0:00:01]} Nxf2 {[%emt 0:00:06]} 25. Kxf2 {[%emt 0:00:04]} Qf5 {[%emt 0:01:42]} 26. Rag1 {[%emt 0:02:21]} Re8 {[%emt 0:00:42][%cal Oe8e2]} 27. Rg3 {[%emt 0:01:17]} Kg7 {[%emt 0:06:50]} 28. Rd1 {[%emt 0:08:27]} b5 {[%emt 0:00:33]} 29. Kf1 {[%emt 0:01:35]} a5 {[%emt 0:00:59][%cal Ba7a5,Ba5b4][%mdl 32] Strongly threatening ...b4.} 30. Rd4 {[%emt 0:00:19]} b4 {[%emt 0:02:22]} 31. axb4 {[%emt 0:00:01]} axb4 {[%emt 0:00:01]} 32. Nd1 {[%emt 0:00:01] [#]} Rxe2 $1 {[%emt 0:01:02][%mdl 512] Weighted Error Value: White=0.69/Black=0.12 (very precise)} 0-1

[Event "Teplice Open 2022"]
[Site "Teplice"]
[Date "2022.06.24"]
[Round "7.19"]
[White "Kochavi, Ori"]
[Black "Raja Harshit"]
[Result "0-1"]
[ECO "B90"]
[WhiteElo "2365"]
[BlackElo "2479"]
[Annotator "TA"]
[PlyCount "60"]
[EventDate "2022.06.18"]
[EventType "swiss"]
[EventCountry "CZE"]
[SourceTitle "playchess.com"]
[Source "ChessBase"]
[SourceQuality "1"]
[TimeControl "40/5400+30:1800+30"]

{[%evp 12,60,14,8,35,21,24,21,20,13,16,11,-2,14,7,0,0,0,0,-7,0,0,0,-24,-15,-35,0,0,0,0,0,0,0,0,0,-172,-30,-138,-83,-329,-322,-468,-460,-614,-589,-1084,-1052,-1033,-1141,-1045,-974]} 1. e4 {[%emt 0:01:10]} c5 {[%emt 0:00:12]} 2. Nf3 {[%emt 0:00:03]} d6 {[%emt 0:00:07]} 3. d4 {[%emt 0:00:01]} cxd4 {[%emt 0:00:09]} 4. Nxd4 {[%emt 0:00:03]} Nf6 {[%emt 0:00:08]} 5. Nc3 {[%emt 0:00:02]} a6 {[%emt 0:00:08]} 6. h3 {[%emt 0:00:02]} e5 {[%emt 0:00:18]} 7. Nde2 {[%emt 0:00:06]} h5 {[%emt 0:00:43] B90: Sicilian Najdorf: Unusual White 6th moves, 6 Be3 Ng4 and 6 Be3 e5.} 8. Bg5 {[%emt 0:00:31]} Be6 {[%emt 0:00:10]} 9. Bxf6 {[%emt 0:00:07]} Qxf6 {[%emt 0:00:04] The position is equal.} 10. Nd5 {[%emt 0:00:03]} Qd8 {[%emt 0:00:08]} 11. Qd3 {[%emt 0:00:08]} g6 {[%emt 0:00:30]} 12. O-O-O {[%emt 0:00:19]} Nd7 {[%emt 0:00:06]} 13. Nec3 {[%emt 0:00:22]} Nc5 {[%emt 0:00:30]} 14. Qe2 {[%emt 0:03:42]} b5 {[%emt 0:04:46]} 15. h4 {[%emt 0:06:19]} Rb8 {[%emt 0:07:12] [#] ...b4 is the strong threat.} 16. a3 {[%emt 0:00:26]} Bd7 {[%emt 0:05:06]} 17. g3 {[%emt 0:12:49]} a5 {[%emt 0:03:04] [#]} ({But not} 17... Bg4 18. f3 Be6 19. Bg2 $14) 18. b4 $146 {[%emt 0:00:38]} ({Predecessor:} 18. Bh3 Bc6 19. b4 Ne6 20. Qd3 Nd4 21. f4 Ra8 22. Rhf1 Bh6 23. Kb2 O-O 24. f5 {½-½ (50) Oparin,G (2625)-Sasikiran,K (2674) Moscow 2017}) 18... axb4 {[%emt 0:03:16]} (18... Bg4 $2 19. f3 axb4 20. axb4 $18) 19. axb4 {[%emt 0:00:05]} Ne6 {[%emt 0:00:15]} (19... Bg4 $2 20. f3 Bd7 21. bxc5 $18) 20. Bh3 {[%emt 0:00:29]} Bg7 {[%emt 0:00:29]} 21. Qd3 {[%emt 0:11:45]} O-O {[%emt 0:01:04]} 22. Kb2 {[%emt 0:02:07]} Nd4 {[%emt 0:14:04] White must now prevent ...Be6.} 23. Bg2 $2 {[%emt 0:21:44]} (23. Bxd7 $11 {and White is okay.} Qxd7 24. Ra1) 23... f5 {[%emt 0:01:51]} ({Black should play} 23... Be6 $19 {Threatens to win with ...Rc8.} 24. Qe3 Kh7) 24. Rhf1 {[%emt 0:02:11] [#]} (24. Ra1 $11 {keeps the balance.}) 24... Rc8 {[%emt 0:03:54]} (24... Be6 $142 $1 {And now ...Rc8 would win.} 25. exf5 gxf5) 25. f4 $2 {[%emt 0:01:55] Loses the game.} (25. Ra1 $17) 25... Rc4 $19 {[%emt 0:05:19]} 26. exf5 {[%emt 0:04:38]} (26. Rf2 $142) 26... gxf5 {[%emt 0:02:32] Strongly threatening ...e4. Black is clearly winning.} 27. fxe5 {[%emt 0:02:05]} dxe5 {[%emt 0:00:44]} 28. Ra1 {[%emt 0:03:38]} e4 {[%emt 0:01:21]} 29. Bxe4 {[%emt 0:00:04]} fxe4 {[%emt 0:01:18]} 30. Qxe4 {[%emt 0:00:10]} Nf5 {[%emt 0:05:10] Weighted Error Value: White=0.72/Black=0.16 (very precise)} 0-1